fUSD/lending_fUSD_20240619
["ID","MTS","AMOUNT","RATE_DAILY","PERIOD"]
[329863384,1718771444688,-507.58,0.00013698,2]
[329863385,1718771444698,-1476.21,0.00013698,2]
[329863386,1718771444706,-500.0,0.00013698,2]
[329863387,1718771444716,-597.53,0.00013698,2]
[329863388,1718771444727,-529.87,0.00013698,2]
[329863389,1718771444737,-498.2981026,0.00013698,2]
[329863390,1718771444746,-1815.73,0.00013698,2]
[329863391,1718771444756,-500.0,0.00013698,2]
[329863392,1718771444766,-500.0,0.00013698,2]
[329863393,1718771444776,-523.31260206,0.00013698,2]
[329863394,1718771444786,-1333.1,0.00013698,2]
[329863395,1718771444795,-899.75,0.00013698,2]
[329863396,1718771444804,-500.0,0.00013698,2]
[329863397,1718771444814,-500.0,0.00013698,2]
[329863398,1718771444824,-1392.07,0.00013698,2]
[329863399,1718771444835,-500.0,0.00013698,2]
[329863400,1718771444847,-634.58,0.00013698,2]
[329863401,1718771444858,-1548.07,0.00013698,2]
[329863402,1718771444870,-603.34,0.00013698,2]
[329863403,1718771444879,-500.0,0.00013698,2]
[329863404,1718771444888,-1342.62,0.00013698,2]
[329863405,1718771444898,-2437.42,0.00013698,2]
[329863406,1718771444907,-754.08,0.00013698,2]
[329863407,1718771444917,-888.48,0.00013698,2]
[329863408,1718771444926,-626.11,0.00013698,2]
[329863409,1718771444935,-500.0,0.00013698,2]
[329863410,1718771444945,-500.0,0.00013698,2]
[329863411,1718771444956,-500.0,0.00013698,2]
[329863412,1718771444967,-2352.69,0.00013698,2]
[329863413,1718771444978,-500.0,0.00013698,2]
[329863414,1718771444989,-1347.58,0.00013698,2]
[329863415,1718771444999,-1009.82780663,0.00013698,2]
[329863416,1718771445008,-331.00122268,0.00013698,2]
[329863417,1718771445041,-2471.74877732,0.00013698,2]
[329863418,1718771445051,-1424.82882267,0.00013698,2]
[329863419,1718771445063,-253.84117733,0.00013698,2]
[329863420,1718771445073,-4.26882267,0.00013698,2]
[329863564,1718771447772,-600.66117733,0.00013698,2]
[329863566,1718771447782,-2555.06,0.00013698,2]
[329863568,1718771447792,-500.0,0.00013698,2]
[329863570,1718771447801,-628.48,0.00013698,2]
[329863572,1718771447810,-500.0,0.00013698,2]
[329863574,1718771447820,-1693.96,0.00013698,2]
[329863576,1718771447829,-596.31066338,0.00013698,2]
[329863578,1718771447838,-500.0,0.00013698,2]
[329863580,1718771447848,-1827.20296433,0.00013698,2]
[329863584,1718771447874,-302.90304715,0.00013698,2]
[329863586,1718771447883,-1015.23,0.00013698,2]
[329863588,1718771447892,-500.0,0.00013698,2]
[329863590,1718771447901,-1104.06,0.00013698,2]
[329863592,1718771447910,-500.0,0.00013698,2]
[329863594,1718771447919,-596.5297131,0.00013698,2]
[329863600,1718771447963,-1343.1802869,0.00013698,2]
[329863602,1718771447973,-500.0,0.00013698,2]
[329863604,1718771447982,-500.0,0.00013698,2]
[329863606,1718771447992,-572.55,0.00013698,2]
[329863608,1718771448001,-379.10377463,0.00013698,2]
[329863625,1718771448157,-503.75622537,0.00013698,2]
[329863627,1718771448166,-896.69,0.00013698,2]
[329863629,1718771448176,-500.0,0.00013698,2]
[329863631,1718771448186,-504.82002537,0.00013698,2]
[329863634,1718771448196,-427.52576585,0.00013698,2]
[329863635,1718771448207,-516.05,0.00013698,2]
[329863637,1718771448217,-1525.0,0.00013698,2]
[329863639,1718771448226,-576.32,0.00013698,2]
[329863641,1718771448237,-1763.8,0.00013698,2]
[329863644,1718771448247,-500.0,0.00013698,2]
[329863645,1718771448256,-500.0,0.00013698,2]
[329863648,1718771448265,-827.58,0.00013698,2]
[329863650,1718771448275,-848.38,0.00013698,2]
[329863652,1718771448284,-1483.85,0.00013698,2]
[329863654,1718771448294,-664.42,0.00013698,2]
[329863656,1718771448303,-1432.78,0.00013698,2]
[329863658,1718771448313,-1432.78,0.00013698,2]
[329863660,1718771448321,-199.4801348,0.00013698,2]
[329863662,1718771448334,-300.5198652,0.00013698,2]
[329863664,1718771448343,-1432.78,0.00013698,2]
[329863666,1718771448352,-1432.78,0.00013698,2]
[329863668,1718771448365,-1432.78,0.00013698,2]
[329863670,1718771448373,-442.86225712,0.00013698,2]
[329863672,1718771448385,-989.91774288,0.00013698,2]
[329863674,1718771448395,-1432.78,0.00013698,2]
[329863676,1718771448409,-1432.78,0.00013698,2]
[329863678,1718771448418,-1432.78,0.00013698,2]
[329863680,1718771448427,-500.0,0.00013698,2]
[329863682,1718771448437,-1371.74225714,0.00013698,2]
[329863786,1718771449529,-61.03774286,0.00013698,2]
[329863788,1718771449539,-500.0,0.00013698,2]
[329863790,1718771449548,-500.0,0.00013698,2]
[329863792,1718771449558,-83.57612174,0.00013698,2]
[329863797,1718771449591,-351.22370167,0.00013698,2]
[329863802,1718771449631,-390.67842279,0.00013698,2]
[329863805,1718771449650,-558.89273358,0.00013698,2]
[329863807,1718771449667,-712.84902022,0.00013698,2]
[329863809,1718771449677,-1473.78,0.00013698,2]
[329863811,1718771449686,-500.0,0.00013698,2]
[329863813,1718771449695,-500.0,0.00013698,2]
[329863816,1718771449709,-606.56,0.00013698,2]
[329863818,1718771449719,-500.0,0.00013698,2]
[329863820,1718771449729,-500.0,0.00013698,2]
[329863822,1718771449738,-500.0,0.00013698,2]
[329863824,1718771449747,-824.2,0.00013698,2]
[329863826,1718771449756,-500.0,0.00013698,2]
[329863828,1718771449766,-500.0,0.00013698,2]
[329863830,1718771449776,-500.0,0.00013698,2]
[329863831,1718771449785,-500.0,0.00013698,2]
[329863832,1718771449794,-500.0,0.00013698,2]
[329863833,1718771449804,-500.0,0.00013698,2]
[329863834,1718771449813,-500.0,0.00013698,2]
[329863835,1718771449822,-1663.29,0.00013698,2]
[329863836,1718771449834,-500.0,0.00013698,2]
[329863837,1718771449844,-500.0,0.00013698,2]
[329863838,1718771449853,-500.0,0.00013698,2]
[329863839,1718771449866,-659.99,0.00013698,2]
[329863840,1718771449875,-500.0,0.00013698,2]
[329863841,1718771449884,-527.24955461,0.00013698,2]
[329863842,1718771449893,-500.0,0.00013698,2]
[329863843,1718771449902,-500.0,0.00013698,2]
[329863844,1718771449912,-1244.77,0.00013698,2]
[329863845,1718771449921,-500.0,0.00013698,2]
[329863846,1718771449931,-500.0,0.00013698,2]
[329863847,1718771449940,-586.87,0.00013698,2]
[329863848,1718771449950,-500.0,0.00013698,2]
[329863849,1718771449959,-500.0,0.00013698,2]
[329863850,1718771449969,-500.0,0.00013698,2]
[329863851,1718771449978,-2273.28,0.00013698,2]
[329863852,1718771449987,-2451.59,0.00013698,2]
[329863853,1718771449998,-554.7,0.00013698,2]
[329863854,1718771450008,-500.0,0.00013698,2]
[329863855,1718771450017,-500.0,0.00013698,2]
[329863856,1718771450027,-500.0,0.00013698,2]
[329863857,1718771450036,-500.0,0.00013698,2]
[329863858,1718771450045,-2502.4,0.00013698,2]
[329863859,1718771450054,-496.78718353,0.00013698,2]
[329863860,1718771450064,-500.0,0.00013698,2]
[329863861,1718771450073,-2297.77,0.00013698,2]
[329863862,1718771450083,-500.0,0.00013698,2]
[329863863,1718771450092,-884.6,0.00013698,2]
[329863864,1718771450102,-500.0,0.00013698,2]
[329863865,1718771450115,-500.0,0.00013698,2]
[329863866,1718771450125,-500.0,0.00013698,2]
[329863867,1718771450135,-547.37,0.00013698,2]
[329863868,1718771450143,-500.0,0.00013698,2]
[329863869,1718771450153,-500.0,0.00013698,2]
[329863870,1718771450162,-1296.99,0.00013698,2]
[329863871,1718771450171,-500.0,0.00013698,2]
[329863872,1718771450180,-1219.52,0.00013698,2]
[329863873,1718771450189,-500.0,0.00013698,2]
[329863874,1718771450198,-500.0,0.00013698,2]
[329863875,1718771450207,-500.0,0.00013698,2]
[329863876,1718771450217,-500.0,0.00013698,2]
[329863877,1718771450226,-500.0,0.00013698,2]
[329863878,1718771450235,-1759.22,0.00013698,2]
[329863879,1718771450244,-500.0,0.00013698,2]
[329863880,1718771450538,-500.0,0.00013698,2]
[329863881,1718771450548,-500.0,0.00013698,2]
[329863882,1718771450558,-500.0,0.00013698,2]
[329863883,1718771450568,-500.0,0.00013698,2]
[329863884,1718771450578,-500.0,0.00013698,2]
[329863885,1718771450588,-641.33,0.00013698,2]
[329863886,1718771450598,-500.0,0.00013698,2]
[329863887,1718771450608,-500.0,0.00013698,2]
[329863888,1718771450622,-500.0,0.00013698,2]
[329863889,1718771450632,-1500.13,0.00013698,2]
[329863890,1718771450641,-1038.55,0.00013698,2]
[329863891,1718771450652,-500.0,0.00013698,2]
[329863892,1718771450661,-1147.31,0.00013698,2]
[329863893,1718771450671,-827.88,0.00013698,2]
[329863894,1718771450680,-600.65079944,0.00013698,2]
[329863895,1718771450691,-520.6,0.00013698,2]
[329863896,1718771450701,-500.0,0.00013698,2]
[329863897,1718771450712,-1847.12,0.00013698,2]
[329863898,1718771450721,-2066.89,0.00013698,2]
[329863899,1718771450731,-510.28021899,0.00013698,2]
[329863900,1718771450742,-500.0,0.00013698,2]
[329863901,1718771450752,-1338.33,0.00013698,2]
[329863902,1718771450762,-500.0,0.00013698,2]
[329863903,1718771450771,-500.0,0.00013698,2]
[329863904,1718771450782,-1623.44,0.00013698,2]
[329863905,1718771450792,-500.0,0.00013698,2]
[329863906,1718771450803,-500.0,0.00013698,2]
[329863907,1718771450812,-500.0,0.00013698,2]
[329863908,1718771450822,-500.0,0.00013698,2]
[329863909,1718771450831,-500.0,0.00013698,2]
[329863910,1718771450840,-1174.02,0.00013698,2]
[329863911,1718771450850,-1186.75,0.00013698,2]
[329863912,1718771450864,-500.0,0.00013698,2]
[329863913,1718771450872,-500.0,0.00013698,2]
[329863914,1718771450882,-1692.15,0.00013698,2]
[329863915,1718771450891,-543.45,0.00013698,2]
[329863916,1718771450900,-800.7,0.00013698,2]
[329863917,1718771450909,-500.0,0.00013698,2]
[329863918,1718771450919,-1411.5,0.00013698,2]
[329863919,1718771450929,-629.69,0.00013698,2]
[329863920,1718771450939,-896.13,0.00013698,2]
[329863921,1718771450948,-500.0,0.00013698,2]
[329863922,1718771450957,-500.0,0.00013698,2]
[329863923,1718771450967,-217.95579048,0.00013698,2]
[329863924,1718771450976,-500.0,0.00013698,2]
[329863925,1718771450986,-500.0,0.00013698,2]
[329863926,1718771450995,-746.75,0.00013698,2]
[329863927,1718771451004,-1374.18,0.00013698,2]
[329863928,1718771451014,-500.0,0.00013698,2]
[329863929,1718771451024,-500.0,0.00013698,2]
[329863930,1718771451034,-500.0,0.00013698,2]
[329863931,1718771451044,-500.0,0.00013698,2]
[329863932,1718771451054,-500.0,0.00013698,2]
[329863933,1718771451064,-500.0,0.00013698,2]
[329863934,1718771451074,-863.91,0.00013698,2]
[329863935,1718771451083,-684.05,0.00013698,2]
[329863936,1718771451092,-1182.35,0.00013698,2]
[329863937,1718771451101,-918.04,0.00013698,2]
[329863938,1718771451114,-500.0,0.00013698,2]
[329863939,1718771451123,-500.0,0.00013698,2]
[329863940,1718771451132,-1133.46,0.00013698,2]
[329863941,1718771451142,-910.68,0.00013698,2]
[329863942,1718771451150,-500.0,0.00013698,2]
[329863943,1718771451160,-1315.71,0.00013698,2]
[329863944,1718771451169,-879.26,0.00013698,2]
[329863945,1718771451178,-2021.44,0.00013698,2]
[329863946,1718771451189,-500.0,0.00013698,2]
[329863947,1718771451210,-151.0,0.00013698,2]
[329863948,1718771451221,-151.0,0.00013698,2]
[329863949,1718771451230,-500.0,0.00013698,2]
[329863950,1718771451240,-500.0,0.00013698,2]
[329863951,1718771451250,-500.0,0.00013698,2]
[329863952,1718771451260,-684.77,0.00013698,2]
[329863953,1718771451270,-603.61404765,0.00013698,2]
[329863954,1718771451279,-500.0,0.00013698,2]
[329863955,1718771451290,-500.0,0.00013698,2]
[329863956,1718771451300,-500.0,0.00013698,2]
[329863957,1718771451310,-1249.94,0.00013698,2]
[329863958,1718771451319,-595.41,0.00013698,2]
[329863959,1718771451329,-500.0,0.00013698,2]
[329863960,1718771451340,-506.21043625,0.00013698,2]
[329863961,1718771451350,-2677.48,0.00013698,2]
[329863962,1718771451359,-1242.96,0.00013698,2]
[329863963,1718771451371,-500.0,0.00013698,2]
[329863964,1718771451381,-500.0,0.00013698,2]
[329863965,1718771451390,-1826.31,0.00013698,2]
[329863966,1718771451402,-846.02,0.00013698,2]
[329863967,1718771451412,-500.0,0.00013698,2]
[329863968,1718771451422,-500.0,0.00013698,2]
[329863969,1718771451431,-3675.19,0.00013698,2]
[329863970,1718771451442,-1157.71,0.00013698,2]
[329863971,1718771451453,-500.0,0.00013698,2]
[329863972,1718771451464,-500.0,0.00013698,2]
[329863973,1718771451475,-1627.45,0.00013698,2]
[329863974,1718771451484,-697.93,0.00013698,2]
[329863975,1718771451498,-268.473729,0.00013698,2]
[329863976,1718771451509,-500.0,0.00013698,2]
[329863977,1718771451519,-500.0,0.00013698,2]
[329863978,1718771451530,-1970.0,0.00013698,2]
[329863979,1718771451540,-1967.12,0.00013698,2]
[329863980,1718771451549,-500.0,0.00013698,2]
[329863981,1718771451559,-502.25001017,0.00013698,2]
[329863982,1718771451570,-500.0,0.00013698,2]
[329863983,1718771451580,-500.0,0.00013698,2]
[329863984,1718771451590,-1426.03,0.00013698,2]
[329863985,1718771451602,-500.0,0.00013698,2]
[329863986,1718771451614,-500.0,0.00013698,2]
[329863987,1718771451624,-960.94,0.00013698,2]
[329863988,1718771451635,-1627.35,0.00013698,2]
[329863989,1718771451646,-1095.83,0.00013698,2]
[329863990,1718771451656,-512.36462476,0.00013698,2]
[329863991,1718771451666,-500.0,0.00013698,2]
[329863992,1718771451676,-1347.25,0.00013698,2]
[329863993,1718771451686,-500.0,0.00013698,2]
[329863994,1718771451695,-929.33,0.00013698,2]
[329863995,1718771451705,-509.62392588,0.00013698,2]
[329863996,1718771451715,-500.0,0.00013698,2]
[329863997,1718771451725,-500.0,0.00013698,2]
[329863998,1718771451734,-500.0,0.00013698,2]
[329863999,1718771451744,-1507.32,0.00013698,2]
[329864000,1718771451754,-500.0,0.00013698,2]
[329864001,1718771451763,-500.0,0.00013698,2]
[329864002,1718771451774,-500.0,0.00013698,2]
[329864003,1718771451785,-500.0,0.00013698,2]
[329864004,1718771451796,-308.44291406,0.00013698,2]
[329864005,1718771473913,76446.1,5e-05,2]
[329864006,1718771473949,140646.27692985,5e-05,2]
[329864007,1718771476933,290.79602934,2e-05,2]
[329864015,1718771991673,171.30784375,5e-05,2]
[329864016,1718771991697,0.02718374,5e-05,2]
[329864017,1718772039760,1554.7574659,3.75e-05,2]
[329864018,1718772055336,617.08120626,0.00025,60]
[329864042,1718772632039,-642.89,0.00010322,2]
[329864043,1718772632049,-262.106032,0.00012101,2]
[329864044,1718772632058,-762.42384341,0.00012162,2]
[329864045,1718772632067,-961.48725631,0.00012195,2]
[329864046,1718772632102,-289.3455407,0.00012195,2]
[329864047,1718772632114,-603.38328281,0.00012195,2]
[329864048,1718772632125,-360.94903349,0.00012195,2]
[329864049,1718772632160,-278.60878409,0.00012195,2]
[329864050,1718772632171,-1115.8023317,0.00012195,2]
[329864051,1718772632182,-1185.07649312,0.00012195,2]
[329864052,1718772632665,-3499.02376926,0.00012195,2]
[329864053,1718772632677,-336.0934182,0.00012195,2]
[329864054,1718772632694,-817.26918962,0.00012195,2]
[329864055,1718772632706,-1539.2209007,0.00012195,2]
[329864056,1718772632717,-794.28611691,0.00012204,2]
[329864057,1718772632730,-1142.54388309,0.00012204,2]
[329864058,1718772632740,-1064.8601477,0.00012239,2]
[329864059,1718772632752,-90.7498523,0.00012239,2]
[329864060,1718772632762,-200.0,0.00012287,2]
[329864061,1718772632772,-1034.3953877,0.00012333,2]
[329864062,1718772632786,-6349.31168983,0.00012333,2]
[329864063,1718772632801,-5314.0001,0.00012333,2]
[329864064,1718772632812,-5823.10282247,0.00012333,2]
[329864065,1718772632822,-250.0,0.00012337,2]
[329864066,1718772632832,-321.88,0.00012361,2]
[329864067,1718772632842,-250.0,0.00012365,2]
[329864068,1718772632851,-1988.23,0.00012368,2]
[329864069,1718772632861,-2049.48,0.00012378,2]
[329864070,1718772632870,-1190.32,0.0001242,2]
[329864071,1718772632887,-178.89,0.00012553,2]
[329864072,1718772632896,-1000.0,0.0001258,2]
[329864073,1718772632907,-642.89,0.00012586,2]
[329864074,1718772632918,-5973.0,0.00012655,2]
[329864075,1718772632928,-150.0,0.00012678,2]
[329864076,1718772632937,-150.0,0.00012678,2]
[329864077,1718772632946,-150.0,0.00012878,2]
[329864078,1718772632956,-150.0,0.00012878,2]
[329864079,1718772632966,-1000.0,0.00012898,2]
[329864080,1718772632976,-305.48,0.00013078,2]
[329864082,1718772632985,-418.17,0.00013096,2]
[329864084,1718772632995,-852.36,0.00013096,2]
[329864086,1718772633005,-852.36,0.00013096,2]
[329864087,1718772633014,-418.17,0.00013096,2]
[329864088,1718772633023,-852.36,0.00013096,2]
[329864089,1718772633034,-418.17,0.00013096,2]
[329864090,1718772633043,-852.36,0.00013096,2]
[329864091,1718772633052,-418.17,0.00013096,2]
[329864092,1718772633061,-418.17,0.00013096,2]
[329864093,1718772633071,-852.36,0.00013096,2]
[329864094,1718772633080,-852.36,0.00013096,2]
[329864095,1718772633090,-418.17,0.00013096,2]
[329864096,1718772633099,-418.17,0.00013096,2]
[329864097,1718772633109,-852.36,0.00013096,2]
[329864098,1718772633119,-852.36,0.00013096,2]
[329864099,1718772633129,-418.17,0.00013096,2]
[329864100,1718772633139,-1704.39,0.00013096,2]
[329864101,1718772633149,-836.18,0.00013096,2]
[329864102,1718772633158,-852.36,0.00013096,2]
[329864103,1718772633167,-418.17,0.00013096,2]
[329864104,1718772633178,-418.17,0.00013096,2]
[329864105,1718772633187,-852.36,0.00013096,2]
[329864106,1718772633197,-195.94,0.00013096,2]
[329864107,1718772633206,-852.36,0.00013096,2]
[329864108,1718772633215,-1280.29,0.00013096,2]
[329864109,1718772633225,-354.09,0.00013123,2]
[329864110,1718772633234,-354.09,0.00013123,2]
[329864111,1718772633244,-354.09,0.00013123,2]
[329864112,1718772633254,-364.92,0.00013123,2]
[329864113,1718772633264,-626.31808426,0.00013148,2]
[329864114,1718772633274,-151.05,0.00013178,2]
[329864115,1718772633286,-236.25,0.0001337,2]
[329864116,1718772633295,-546.39,0.0001337,2]
[329864117,1718772633303,-429.5,0.0001337,2]
[329864118,1718772633312,-329.33,0.0001337,2]
[329864119,1718772633321,-156.64,0.0001337,2]
[329864120,1718772633332,-429.84,0.0001337,2]
[329864121,1718772633341,-171.3,0.0001337,2]
[329864122,1718772633350,-150.0,0.0001337,2]
[329864123,1718772633360,-150.0,0.0001337,2]
[329864124,1718772633369,-150.0,0.0001337,2]
[329864125,1718772633378,-164.51,0.0001337,2]
[329864126,1718772633388,-300.0,0.0001337,2]
[329864127,1718772633398,-150.0,0.0001337,2]
[329864128,1718772633407,-150.0,0.0001337,2]
[329864129,1718772633417,-527.36,0.0001337,2]
[329864130,1718772633428,-423.43,0.0001337,2]
[329864131,1718772633437,-817.76,0.0001337,2]
[329864132,1718772633446,-150.0,0.0001337,2]
[329864133,1718772633455,-150.0,0.0001337,2]
[329864134,1718772633465,-354.09,0.0001337,2]
[329864135,1718772633475,-150.0,0.0001337,2]
[329864136,1718772633486,-164.51,0.0001337,2]
[329864137,1718772633496,-150.0,0.0001337,2]
[329864138,1718772633507,-150.0,0.0001337,2]
[329864139,1718772633517,-527.36,0.0001337,2]
[329864140,1718772633529,-354.09,0.0001337,2]
[329864141,1718772633538,-150.0,0.0001337,2]
[329864142,1718772633548,-150.0,0.0001337,2]
[329864143,1718772633558,-423.43,0.0001337,2]
[329864144,1718772633568,-164.51,0.0001337,2]
[329864145,1718772633578,-150.0,0.0001337,2]
[329864146,1718772633587,-150.0,0.0001337,2]
[329864147,1718772633597,-150.0,0.0001337,2]
[329864148,1718772633608,-527.36,0.0001337,2]
[329864149,1718772633619,-423.43,0.0001337,2]
[329864150,1718772633628,-354.09,0.0001337,2]
[329864151,1718772633638,-150.0,0.0001337,2]
[329864152,1718772633648,-164.51,0.0001337,2]
[329864153,1718772633659,-150.0,0.0001337,2]
[329864154,1718772633668,-150.0,0.0001337,2]
[329864155,1718772633678,-150.0,0.0001337,2]
[329864156,1718772633687,-423.43,0.0001337,2]
[329864157,1718772633696,-150.0,0.0001337,2]
[329864158,1718772633706,-527.36,0.0001337,2]
[329864159,1718772633715,-150.0,0.0001337,2]
[329864160,1718772633725,-164.51,0.0001337,2]
[329864161,1718772633735,-354.09,0.0001337,2]
[329864162,1718772633745,-150.0,0.0001337,2]
[329864163,1718772633754,-150.0,0.0001337,2]
[329864164,1718772633764,-150.0,0.0001337,2]
[329864165,1718772633774,-423.43,0.0001337,2]
[329864166,1718772633784,-527.36,0.0001337,2]
[329864167,1718772633795,-150.0,0.0001337,2]
[329864168,1718772633809,-354.09,0.0001337,2]
[329864169,1718772633819,-150.0,0.0001337,2]
[329864170,1718772633828,-164.51,0.0001337,2]
[329864171,1718772633838,-527.36,0.0001337,2]
[329864172,1718772633847,-150.0,0.0001337,2]
[329864173,1718772633856,-150.0,0.0001337,2]
[329864174,1718772633866,-423.43,0.0001337,2]
[329864175,1718772633878,-354.09,0.0001337,2]
[329864176,1718772633887,-150.0,0.0001337,2]
[329864177,1718772633897,-164.51,0.0001337,2]
[329864178,1718772633906,-150.0,0.0001337,2]
[329864179,1718772633916,-1054.51,0.0001337,2]
[329864180,1718772633925,-328.95,0.0001337,2]
[329864181,1718772633935,-300.0,0.0001337,2]
[329864182,1718772633944,-300.0,0.0001337,2]
[329864183,1718772633954,-846.7,0.0001337,2]
[329864184,1718772633964,-300.0,0.0001337,2]
[329864185,1718772633974,-708.04,0.0001337,2]
[329864186,1718772633983,-423.43,0.0001337,2]
[329864187,1718772633993,-150.0,0.0001337,2]
[329864188,1718772634002,-527.36,0.0001337,2]
[329864189,1718772634011,-354.09,0.0001337,2]
[329864190,1718772634021,-150.0,0.0001337,2]
[329864191,1718772634031,-164.51,0.0001337,2]
[329864192,1718772634041,-150.0,0.0001337,2]
[329864193,1718772634051,-423.43,0.0001337,2]
[329864194,1718772634060,-527.36,0.0001337,2]
[329864195,1718772634069,-150.0,0.0001337,2]
[329864196,1718772634078,-164.51,0.0001337,2]
[329864197,1718772634087,-354.09,0.0001337,2]
[329864198,1718772634097,-150.0,0.0001337,2]
[329864199,1718772634107,-527.36,0.0001337,2]
[329864200,1718772634118,-423.43,0.0001337,2]
[329864201,1718772634129,-150.0,0.0001337,2]
[329864202,1718772634138,-354.09,0.0001337,2]
[329864203,1718772634150,-150.0,0.0001337,2]
[329864204,1718772634160,-150.0,0.0001337,2]
[329864205,1718772634171,-164.51,0.0001337,2]
[329864206,1718772634182,-423.43,0.0001337,2]
[329864207,1718772634191,-164.51,0.0001337,2]
[329864208,1718772634202,-150.0,0.0001337,2]
[329864209,1718772634213,-354.09,0.0001337,2]
[329864210,1718772634225,-150.0,0.0001337,2]
[329864211,1718772634235,-527.36,0.0001337,2]
[329864212,1718772634245,-423.43,0.0001337,2]
[329864213,1718772634254,-354.09,0.0001337,2]
[329864214,1718772634265,-527.36,0.0001337,2]
[329864215,1718772634274,-150.0,0.0001337,2]
[329864216,1718772634286,-150.0,0.0001337,2]
[329864217,1718772634295,-150.0,0.0001337,2]
[329864218,1718772634305,-164.51,0.0001337,2]
[329864219,1718772634314,-527.36,0.0001337,2]
[329864220,1718772634323,-164.51,0.0001337,2]
[329864221,1718772634332,-354.09,0.0001337,2]
[329864222,1718772634342,-423.43,0.0001337,2]
[329864223,1718772634351,-150.0,0.0001337,2]
[329864224,1718772634361,-150.0,0.0001337,2]
[329864225,1718772634371,-150.0,0.0001337,2]
[329864226,1718772634380,-423.43,0.0001337,2]
[329864227,1718772634390,-164.51,0.0001337,2]
[329864228,1718772634399,-527.36,0.0001337,2]
[329864229,1718772634408,-150.0,0.0001337,2]
[329864230,1718772634418,-150.0,0.0001337,2]
[329864231,1718772634427,-354.09,0.0001337,2]
[329864232,1718772634436,-2236.19869591,0.00013373,2]
[329864233,1718772634446,-305.29,0.000134,2]
[329864234,1718772634455,-164.51,0.000134,2]
[329864235,1718772634465,-423.43,0.000134,2]
[329864236,1718772634475,-423.43,0.000134,2]
[329864237,1718772634485,-360.05,0.000134,2]
[329864238,1718772634494,-398.83,0.000134,2]
[329864239,1718772634504,-507.06889845,0.00013424,2]
[329864240,1718772634513,-150.0,0.000135,2]
[329864241,1718772634522,-302.04,0.000135,2]
[329864242,1718772634533,-527.36,0.000135,2]
[329864243,1718772634542,-164.51,0.000135,2]
[329864244,1718772634551,-150.0,0.000135,2]
[329864245,1718772634560,-423.43,0.000135,2]
[329864246,1718772634569,-527.36,0.000135,2]
[329864247,1718772634579,-164.51,0.000135,2]
[329864248,1718772634589,-150.0,0.000135,2]
[329864249,1718772634598,-423.43,0.000135,2]
[329864250,1718772634608,-164.51,0.000135,2]
[329864251,1718772634618,-150.0,0.000135,2]
[329864252,1718772634627,-527.36,0.000135,2]
[329864253,1718772634637,-164.51,0.000135,2]
[329864254,1718772634646,-527.36,0.000135,2]
[329864255,1718772634656,-423.43,0.000135,2]
[329864256,1718772634665,-155.95,0.000135,2]
[329864257,1718772634674,-354.09,0.000135,2]
[329864258,1718772634683,-433.27,0.000135,2]